Cogmind - Beta 10.2 @@@ ROGUE MODE // 2021.10.22 @ 23:14:01 Player: ptdel Result: Destroyed by Executioner with Helical Railgun Performance ------------- Evolutions (9) 4500 Regions Visited (14) 2800 Robots Destroyed (134) 670 Value Destroyed (4187) 4187 Prototype IDs (25) 500 Alien Tech Used (0) 0 Bonus (539) 539 TOTAL SCORE: 13196 Bonus ------- High Alert Combat Kills 221 Follower Combat Kills 318 Cogmind --------- Core Integrity 0/1600 Matter 290/300 Energy 99/100 System Corruption 9% Temperature Cool (0) Movement Core (50) Location -1/Command Parts ------- > --- POWER (5) -------- (None) > --- PROPULSION (10) -- (None) > --- UTILITY (8) ------ Advanced Visual Processing Unit Advanced Signal Interpreter > --- WEAPON (2) ------- (None) > --- INVENTORY (4) ---- (None) Peak State ------------ > --- POWER ------------ Micro Fission Core Micro Fission Core Light Antimatter Reactor Light Particle Reactor Light Particle Reactor > --- PROPULSION ------- Cooled VTOL Module Nuclear Pulse Thruster Experimental Cesium-ion Thruster Impulse Thruster Impulse Thruster Impulse Thruster Q-thruster Improved Diametric Drive Impulse Thruster Array > --- UTILITY ---------- Advanced Cooling System Improved Coolant Injector Improved Coolant Injector Advanced Visual Processing Unit Advanced Signal Interpreter Advanced Terrain Scan Processor Experimental System Shield System Restoration Module > --- WEAPON ----------- Ripper Enhanced Force Lance > --- INVENTORY -------- Q-thruster Advanced Sensor Array [Rating: 161] Favorites ----------- Power Ion Engine Engine Ion Engine Power Core Light Nuclear Core Reactor Light Antimatter Reactor Propulsion Light Treads Treads Light Treads Leg Aluminum Leg Flight Unit Xenon Bombardment Thruster Utility High-capacity Storage Unit Device Long-range Sensor Array Storage High-capacity Storage Unit Processor Advanced Signal Interpreter Hackware Hacking Suite Protection Hardened Medium Armor Plating Weapon EM Pulse Gun Energy Gun EM Pulse Gun Energy Cannon Ion Cannon Ballistic Gun Assault Rifle Ballistic Cannon Assault Cannon Launcher Grenade Launcher Slashing Weapon Scythe Piercing Weapon Enhanced Force Lance Special Melee Weapon Datajack Build | -11 -10 -10 -9 -8 -7 -7 -6 -5 -5 -4 -3 -2 -1 -1 ------- Run | Scr Mat Min Mat Mat Fac Sto Fac Fac Ext Fac Res Res Acc Com Slots Evolved 18 | . . . 2 2 2 . 2 2 . 2 2 2 2 . Power 4 | . . . 1 . . . 1 . . 1 . . 1 . Propulsion 8 | . . . . 1 2 . 1 . . 1 1 1 1 . Utility 6 | . . . 1 1 . . . 2 . . 1 1 . . Weapon . | . . . . . . . . . . . . . . . Parts Attached 187 | 6 12 2 24 34 26 11 11 5 1 4 12 12 18 9 Power 39 | 1 . . 4 7 4 3 2 1 . 1 2 5 6 3 Engine 15 | 1 . . 4 7 . 2 . . . 1 . . . . Core 13 | . . . . . 4 1 2 1 . . . 2 2 1 Reactor 11 | . . . . . . . . . . . 2 3 4 2 Propulsion 57 | 2 2 2 4 11 14 1 2 . . 1 7 5 6 . Treads 19 | 2 . 2 4 11 . . . . . . . . . . Leg 2 | . 2 . . . . . . . . . . . . . Wheel . | . . . . . . . . . . . . . . . Hover . | . . . . . . . . . . . . . . . Flight 36 | . . . . . 14 1 2 . . 1 7 5 6 . Utility 55 | 1 2 . 6 9 6 7 5 3 . 2 3 2 4 5 Device 27 | . . . 1 2 4 7 2 2 . 1 1 2 2 3 Storage 3 | 1 2 . . . . . . . . . . . . . Processor 9 | . . . . . 2 . 2 1 . 1 . . 1 2 Hackware 4 | . . . . . . . 1 . . . 2 . 1 . Protection 12 | . . . 5 7 . . . . . . . . . . Artifact . | . . . . . . . . . . . . . . . Weapon 36 | 2 8 . 10 7 2 . 2 1 1 . . . 2 1 Energy Gun 14 | . 5 . 5 3 1 . . . . . . . . . Energy Cannon 2 | . . . 1 1 . . . . . . . . . . Ballistic Gun 3 | 2 1 . . . . . . . . . . . . . Ballistic Cannon 3 | . . . 2 1 . . . . . . . . . . Launcher 5 | . 1 . 2 1 . . 1 . . . . . . . Special Weapon . | . . . . . . . . . . . . . . . Impact Weapon . | . . . . . . . . . . . . . . . Slashing Weapon 5 | . . . . 1 1 . 1 . 1 . . . 1 . Piercing Weapon 3 | . . . . . . . . 1 . . . . 1 1 Special Melee Weapon 1 | . 1 . . . . . . . . . . . . . Unidentified Prototypes 10 | . . . 1 . 1 2 1 . . . 2 . 2 1 Parts Lost 63 | . 2 . 10 9 . 1 2 . . . . 7 7 25 Power 16 | . . . 2 3 . . 1 . . . . 2 2 6 Propulsion 20 | . . . 1 2 . 1 . . . . . 4 3 9 Utility 15 | . . . 2 2 . . . . . . . 1 2 8 Weapon 12 | . 2 . 5 2 . . 1 . . . . . . 2 Highest Loss Streak 16 | . 1 . 3 4 . 1 1 . . . . 7 5 16 Average Slot Usage (%) 96 | . 97 100 98 98 94 100 94 94 100 94 92 91 94 67 Engine 12 | . 14 14 20 17 . . 6 5 5 10 6 3 . . Core 2 | . . . . . 14 14 13 11 11 5 4 3 7 3 Treads 11 | . 4 8 21 26 . . . . . . . . . . Leg 7 | . 23 19 . . . . . . . . . . . . Flight 9 | . . . . . 37 38 39 35 35 36 33 32 35 23 Device 4 | . . . . . 17 23 13 17 17 15 17 21 18 18 Storage 16 | . 26 28 22 18 . . . . . . . . . . Processor 2 | . . . . . 12 7 6 10 11 10 9 8 10 9 Protection 5 | . . . 11 17 . . . . . . . . . . Energy Gun 9 | . 19 28 8 3 1 . . . . . . . . . Energy Cannon 1 | . . . 2 3 . . . . . . . . . . Ballistic Gun 1 | . 5 . . . . . . . . . . . . . Ballistic Cannon 2 | . . . . 9 . . . . . . . . . . Launcher 3 | . 3 . 10 1 . . 1 . . . . . . . Slashing Weapon 2 | . . . . . 7 15 8 5 5 10 9 8 4 1 Naked Turns . | . . . . . . . . . . . . . . . Heaviest Build 101 | 12 74 73 91 101 19 30 37 36 37 39 55 61 83 77 Greatest Support 100 | 40 40 40 40 84 32 32 38 38 38 45 77 90 100 100 Greatest Overweight (x) 7 | . 7 3 2 3 . . . . . . . . . 2 Average Overweight (x) . | . 5 2 1 1 . . . . . . . . . . Largest Inventory Capacity 20 | 6 20 20 20 20 20 4 4 4 4 4 4 4 4 4 Average Capacity 15 | 5 18 20 20 20 4 4 4 4 4 4 4 4 4 4 Most Carried 20 | 5 20 20 20 20 18 4 4 4 4 4 4 4 4 4 Average Carried 13 | 2 16 19 17 19 4 3 2 2 3 2 3 3 2 2 Final Capacity 20 | 6 20 20 20 20 4 4 4 4 4 4 4 4 4 4 Final Carried 20 | 4 19 19 20 19 4 3 4 4 4 4 4 4 4 . Class Distribution -------------------- 65% | Hauler-Mutant 10% | Generator-Scout 5% | Scavenger-Sprinter 4% | Scavenger-Mutant 4% | Scavenger-Scout 3% | Mutant 3% | Sprinter Dominant Class ---------------- Hauler-Mutant | -10/Materials Hauler-Mutant | -10/Mines Hauler-Mutant | -9/Materials Hauler-Mutant | -8/Materials Scavenger-Scout | -7/Factory Scavenger-Sprinter | -7/Storage Sprinter | -6/Factory Scout | -5/Factory Generator-Scout | -5/Extension Generator-Scout | -4/Factory Generator-Scout | -3/Research Generator-Scout | -2/Research Generator-Ninja | -1/Access Scavenger-Sprinter | -1/Command Resources | -11 -10 -10 -9 -8 -7 -7 -6 -5 -5 -4 -3 -2 -1 -1 ----------- Run | Scr Mat Min Mat Mat Fac Sto Fac Fac Ext Fac Res Res Acc Com Matter Collected 3277 | 226 276 40 877 914 66 186 183 . 90 30 116 134 71 68 Remotely . | . . . . . . . . . . . . . . . Salvage Created 3947 | . 393 104 1374 1309 45 47 14 . 43 . 123 356 71 68 Parts 298 | . 25 4 108 95 4 2 3 . 6 . 10 28 6 7 Haulers Intercepted 2 | . . . 1 1 . . . . . . . . . . Recyclers Shooed 1 | . . . 1 . . . . . . . . . . . Parts Field Recycled . | . . . . . . . . . . . . . . . Retrieved Matter . | . . . . . . . . . . . . . . . Parts Self-Destructed . | . . . . . . . . . . . . . . . Prevented . | . . . . . . . . . . . . . . . Kills | -11 -10 -10 -9 -8 -7 -7 -6 -5 -5 -4 -3 -2 -1 -1 ------- Run | Scr Mat Min Mat Mat Fac Sto Fac Fac Ext Fac Res Res Acc Com Combat Hostiles Destroyed 87 | . 11 2 36 32 1 1 . . . . . 3 . 1 Melee 10 | . . . . 4 1 1 . . . . . 3 . 1 Guns 22 | . 6 2 12 2 . . . . . . . . . . Cannons 22 | . . . 4 18 . . . . . . . . . . AOE 31 | . 5 . 20 6 . . . . . . . . . . Classes Destroyed 13 | . 3 . 6 3 1 . . . . . . . . . Worker 15 | . . . 6 9 . . . . . . . . . . Builder 6 | . . . 4 1 . . . . 1 . . . . . Tunneler 1 | . . . . 1 . . . . . . . . . . Hauler 2 | . . . 1 1 . . . . . . . . . . Recycler 2 | . . . 2 . . . . . . . . . . . Operator 2 | . . . 1 . . . 1 . . . . . . . Watcher 19 | . 3 . 4 2 . . . . 1 . 3 4 2 . Swarmer 16 | . 3 . 7 6 . . . . . . . . . . Grunt 43 | . 8 2 19 13 . 1 . . . . . . . . Duelist 2 | . . . . 2 . . . . . . . . . . Sentry 19 | . . . 10 9 . . . . . . . . . . Hunter 2 | . . . . 2 . . . . . . . . . . Programmer 5 | . . . . . 1 . . . . . . 3 . 1 Best Kill Streak 10 | . 3 1 10 9 1 1 1 . 1 . 1 3 1 1 Combat Bots Only 7 | . 3 1 7 5 1 1 . . . . . 3 . 1 Max Kills in Single Turn 3 | . 2 1 3 3 1 1 1 . 1 . 1 1 1 1 Gunslinging . | . . . . . . . . . . . . . . . Exploded 2 | . 2 . 2 1 . . . . . . . . . . Melee 1 | . . . . 1 1 1 . . . . . 1 . 1 Uniques/NPCs Destroyed . | . . . . . . . . . . . . . . . Combat | -11 -10 -10 -9 -8 -7 -7 -6 -5 -5 -4 -3 -2 -1 -1 -------- Run | Scr Mat Min Mat Mat Fac Sto Fac Fac Ext Fac Res Res Acc Com Damage Taken 8895 | . 543 142 1454 2209 111 32 88 . . . 245 514 440 3117 Core 2209 | . 66 42 166 171 33 . . . . . 52 66 22 1591 Absorbed by Shields 464 | . . . . . . . . . . . . . . 464 Core Remaining (%) 86 | 100 . 56 58 68 . 95 100 . 100 100 96 95 . . Volleys Fired 201 | . 40 10 74 77 . . . . . . . . . . Largest 2 | . 2 2 2 2 . . . . . . . . . . Hottest 104 | . 80 80 96 104 . . . . . . . . . . Shots Fired 375 | . 78 20 133 144 . . . . . . . . . . Gun 183 | . 71 20 62 30 . . . . . . . . . . Cannon 113 | . . . 9 104 . . . . . . . . . . Launcher 79 | . 7 . 62 10 . . . . . . . . . . Special . | . . . . . . . . . . . . . . . Kinetic 118 | . 31 . 2 85 . . . . . . . . . . Thermal 36 | . . . 17 19 . . . . . . . . . . Explosive 79 | . 7 . 62 10 . . . . . . . . . . Electromagnetic 142 | . 40 20 52 30 . . . . . . . . . . Robot Hit Streak 21 | . 16 9 15 21 . . . . . . . . . . Robot Miss Streak 4 | . 3 1 3 4 . . . . . . . . . . Penetration Max . | . . . . . . . . . . . . . . . Secondary Targets 1 | . . . 1 . . . . . . . . . . . Max Gunslinging Chain 1 | . . . 1 . . . . . . . . . . . Shots Hit Robots 305 | . 46 16 84 101 2 2 1 . 2 . 9 31 5 6 Core Hits 212 | . 24 5 87 71 1 1 1 . 2 . 4 11 2 3 Critical Hits 2 | . . . . . . . . . . . . . 1 1 Critical Kills 1 | . . . . . . . . . . . . . . 1 Critical Parts Destroyed 1 | . . . . . . . . . . . . . 1 . Melee Attacks 151 | . . . . 14 26 4 15 . 3 . 15 50 10 14 Impact . | . . . . . . . . . . . . . . . Slashing 132 | . . . . 14 26 4 15 . 2 . 15 50 4 2 Piercing 19 | . . . . . . . . . 1 . . . 6 12 Sneak Attacks 5 | . . . . . . . . . 1 . 2 . 2 . Combat Hostiles . | . . . . . . . . . . . . . . . Follow-up Attacks 16 | . . . . . . 1 . . . . 2 9 2 2 Damage Inflicted 10895 | . 989 162 3711 3141 62 71 55 . 156 . 595 1187 465 301 Guns 1730 | . 530 162 656 382 . . . . . . . . . . Cannons 1505 | . . . 145 1360 . . . . . . . . . . Explosions 4352 | . 457 . 2871 1024 . . . . . . . . . . Melee 3233 | . . . . 341 62 71 55 . 156 . 595 1187 465 301 Ramming 75 | . 2 . 39 34 . . . . . . . . . . Kinetic 1345 | . 184 . 48 1113 . . . . . . . . . . Thermal 807 | . 109 . 283 415 . . . . . . . . . . Explosive 3999 | . 348 . 2795 856 . . . . . . . . . . Electromagnetic 1436 | . 346 162 546 382 . . . . . . . . . . Impact . | . . . . . . . . . . . . . . . Slashing 2618 | . . . . 341 62 71 55 . 108 . 595 1187 157 42 Piercing 615 | . . . . . . . . . 48 . . . 308 259 Highest Corruption 9 | . . . 3 . . . . 2 2 . 3 1 . 9 Average Corruption 3 | . . . 2 . . . . 2 2 . 2 1 . 7 Corruption Purged 1 | . . . . . . . . . . . . 1 . . Effects 38 | . . . 24 . . . . . 4 . 3 . . 7 Message Errors 9 | . . . 6 . . . . . 2 . . . . 1 Matter Fused 7 | . . . 5 . . . . . . . . . . 2 Heat Flow Errors 3 | . . . 1 . . . . . . . . . . 2 Energy Discharges 8 | . . . 5 . . . . . . . 3 . . . Data Loss (minor) 9 | . . . 5 . . . . . 2 . . . . 2 Targeting Errors 2 | . . . 2 . . . . . . . . . . . Overload Shots . | . . . . . . . . . . . . . . . Overflow Damage 430 | . . . 90 12 . 10 . . . . 142 52 71 53 Projectiles 12 | . . . . 12 . . . . . . . . . . Explosions 88 | . . . 88 . . . . . . . . . . . Melee 330 | . . . 2 . . 10 . . . . 142 52 71 53 Knockbacks 8 | . . . . 8 . . . . . . . . . . Impact . | . . . . . . . . . . . . . . . Kinetic 8 | . . . . 8 . . . . . . . . . . Secondary . | . . . . . . . . . . . . . . . Self-Inflicted Damage 428 | . 97 . 261 70 . . . . . . . . . . Shots 17 | . 3 . 12 2 . . . . . . . . . . Rammed 6 | . 1 . 5 . . . . . . . . . . . Targets Rammed 7 | . 1 . 5 1 . . . . . . . . . . Kicked . | . . . . . . . . . . . . . . . Crushed 1 | . . . . 1 . . . . . . . . . . Highest Temperature 402 | . 198 126 297 402 4 . 181 . . 198 199 197 199 199 Average Temperature 101 | . 61 67 89 150 4 . 57 . . 118 76 89 116 125 Received Heat Transfer 1614 | . 183 81 372 738 24 18 6 . . . 18 . 18 156 Effects 20 | . . . 2 18 . . . . . . . . . . Shutdowns 4 | . . . . 4 . . . . . . . . . . Energy Bleed 3 | . . . . 3 . . . . . . . . . . Interference 9 | . . . 2 7 . . . . . . . . . . Matter Decay 2 | . . . . 2 . . . . . . . . . . Short Circuit 2 | . . . . 2 . . . . . . . . . . Siege Activations . | . . . . . . . . . . . . . . . Robots Corrupted 2 | . . . . 2 . . . . . . . . . . Combat Hostiles 2 | . . . . 2 . . . . . . . . . . Parts Fried 9 | . 3 2 . 4 . . . . . . . . . . Impact Corruptions 1 | . . . 1 . . . . . . . . . . . Robots Melted . | . . . . . . . . . . . . . . . Combat Hostiles . | . . . . . . . . . . . . . . . Parts Melted 1 | . . . 1 . . . . . . . . . . . Heat Transferred 1101 | . 50 . 494 557 . . . . . . . . . . Parts Sabotaged . | . . . . . . . . . . . . . . . Parts Stolen . | . . . . . . . . . . . . . . . Parts Stripped . | . . . . . . . . . . . . . . . Power Chain Reactions 5 | . 1 . 2 2 . . . . . . . . . . Missiles Intercepted . | . . . . . . . . . . . . . . . Alert | -11 -10 -10 -9 -8 -7 -7 -6 -5 -5 -4 -3 -2 -1 -1 ------- Run | Scr Mat Min Mat Mat Fac Sto Fac Fac Ext Fac Res Res Acc Com Peak Influence 645 | . 167 70 645 632 391 146 238 14 499 215 262 240 313 473 Initial 272 | . . . . 272 268 116 54 14 7 205 112 155 24 200 Average 198 | . 21 6 408 327 243 124 116 14 164 205 126 193 211 323 Maximum Alert Level 2 | . . . 2 2 1 . 1 . 2 1 1 1 1 2 Low Security (%) 54 | 100 100 100 12 16 36 100 74 100 70 . 90 38 36 . Level 1 27 | . . . 33 47 63 . 25 . 19 100 9 61 63 69 Level 2 18 | . . . 53 36 . . . . 10 . . . . 30 Level 3 . | . . . . . . . . . . . . . . . Level 4 . | . . . . . . . . . . . . . . . Level 5 . | . . . . . . . . . . . . . . . High Security . | . . . . . . . . . . . . . . . Max Security . | . . . . . . . . . . . . . . . Squads Dispatched 28 | . 2 . 6 4 2 3 . 1 2 . 1 2 1 4 Investigation 19 | . 2 . 4 3 1 2 . 1 2 . . . 1 3 Extermination 4 | . . . . . 1 . . . . . 1 2 . . Reinforcement 4 | . . . 2 . . 1 . . . . . . . 1 Assault 1 | . . . . 1 . . . . . . . . . . Garrison . | . . . . . . . . . . . . . . . Intercept . | . . . . . . . . . . . . . . . Construction Impeded 2 | . . . 2 . . . . . . . . . . . Haulers Reinforced . | . . . . . . . . . . . . . . . Stealth | -11 -10 -10 -9 -8 -7 -7 -6 -5 -5 -4 -3 -2 -1 -1 --------- Run | Scr Mat Min Mat Mat Fac Sto Fac Fac Ext Fac Res Res Acc Com Distress Signals 14 | . 2 . 4 . 1 . . . 1 . 4 . 2 . Communications Jammed . | . . . . . . . . . . . . . . . Distress Signals . | . . . . . . . . . . . . . . . Times Spotted 242 | . 25 4 50 46 11 5 6 . 12 . 20 14 13 36 Peak Tracking Total 22 | . 3 2 5 7 4 3 5 . 6 . 13 5 12 22 Tactical Retreats 25 | . . 1 . 3 4 2 1 . 3 . 4 . 3 4 Traps | -11 -10 -10 -9 -8 -7 -7 -6 -5 -5 -4 -3 -2 -1 -1 ------- Run | Scr Mat Min Mat Mat Fac Sto Fac Fac Ext Fac Res Res Acc Com Traps Triggered 31 | . 1 . 4 1 2 2 2 1 2 . 2 4 1 9 Indirectly . | . . . . . . . . . . . . . . . Trap Hack Attempts . | . . . . . . . . . . . . . . . Triggered . | . . . . . . . . . . . . . . . Disarmed 10 | . 4 . . 6 . . . . . . . . . . Reprogrammed . | . . . . . . . . . . . . . . . Reused . | . . . . . . . . . . . . . . . Traps Extracted . | . . . . . . . . . . . . . . . Installed . | . . . . . . . . . . . . . . . Triggered . | . . . . . . . . . . . . . . . Machines | -11 -10 -10 -9 -8 -7 -7 -6 -5 -5 -4 -3 -2 -1 -1 ---------- Run | Scr Mat Min Mat Mat Fac Sto Fac Fac Ext Fac Res Res Acc Com Machines Disabled 21 | . 4 . 13 1 1 . . . 1 . . . 1 . Max in Single Turn 3 | . 1 . 3 1 1 . . . . . . . 1 . Garrison Access 3 | . . . . . . . 2 . . . . 1 . . Machines Sabotaged . | . . . . . . . . . . . . . . . Garrisons Compromised . | . . . . . . . . . . . . . . . Overloaded Fab Kills . | . . . . . . . . . . . . . . . Fab Network Shutdowns . | . . . . . . . . . . . . . . . Hacking | -11 -10 -10 -9 -8 -7 -7 -6 -5 -5 -4 -3 -2 -1 -1 --------- Run | Scr Mat Min Mat Mat Fac Sto Fac Fac Ext Fac Res Res Acc Com Machines Accessed 82 | . 9 1 13 12 5 4 7 2 9 3 3 3 7 4 Terminals 62 | . 8 1 9 8 3 4 4 2 9 1 2 1 6 4 Fabricators 1 | . . . . . 1 . . . . . . . . . Repair Stations 5 | . 1 . 2 1 . . 1 . . . . . . . Recycling Units . | . . . . . . . . . . . . . . . Scanalyzers 5 | . . . 2 2 . . . . . 1 . . . . Garrison Access 9 | . . . . 1 1 . 2 . . 1 1 2 1 . Total Hacks 216 | . 26 3 44 44 11 7 19 3 20 8 5 5 14 7 Successful 126 | . 16 1 34 31 4 4 14 1 12 2 1 2 4 . Failed 89 | . 10 2 10 13 7 3 4 2 8 6 4 3 10 7 Catastrophic 15 | . . . 1 2 2 . 1 . . 1 1 . 3 4 Database Lockouts 1 | . . . . . . . 1 . . . . . . . Manual 5 | . 2 1 . 1 . . . . . . . . . 1 Terminals 168 | . 24 3 29 33 5 7 15 3 20 3 4 2 13 7 Fabricators 3 | . . . . . 3 . . . . . . . . . Repair Stations 13 | . 2 . 7 2 . . 2 . . . . . . . Recycling Units . | . . . . . . . . . . . . . . . Scanalyzers 18 | . . . 8 6 . . . . . 4 . . . . Garrison Access 14 | . . . . 3 3 . 2 . . 1 1 3 1 . Terminal Hacks 93 | . 15 1 19 23 1 4 10 1 12 1 1 1 4 . Record 35 | . 5 . 10 12 . . 6 . . 1 . 1 . . Part Schematic 1 | . . . . . . . . . 1 . . . . . Robot Schematic 3 | . . . . . . . 1 . 2 . . . . . Robot Analysis 4 | . 3 . . . . . 1 . . . . . . . Prototype ID Bank 13 | . 3 . 4 4 . 1 1 . . . . . . . Open Door 13 | . . . . . . 2 . 1 7 . . . 3 . Level Access Points 1 | . . . . 1 . . . . . . . . . . Emergency Access Points 3 | . . . . 1 . . 1 . . . 1 . . . Alert Level 3 | . . . 1 . . 1 . . 1 . . . . . Unreport Threat 1 | . . . . 1 . . . . . . . . . . Locate Traps 3 | . 1 . 1 1 . . . . . . . . . . Disarm Traps 3 | . 1 . . 2 . . . . . . . . . . Investigation Status 1 | . . . . . . . . . 1 . . . . . Recall Investigation 1 | . . . . 1 . . . . . . . . . . Hauler Manifests 2 | . 1 . 1 . . . . . . . . . . . Zone Layout 6 | . 1 1 2 . 1 . . . . . . . 1 . Fabricator Hacks 3 | . . . . . 3 . . . . . . . . . Network Status 1 | . . . . . 1 . . . . . . . . . Load Schematic 1 | . . . . . 1 . . . . . . . . . Build 1 | . . . . . 1 . . . . . . . . . Repair Station Hacks 12 | . 1 . 7 2 . . 2 . . . . . . . Scan Component 7 | . 1 . 4 1 . . 1 . . . . . . . Repair 5 | . . . 3 1 . . 1 . . . . . . . Recycling Unit Hacks . | . . . . . . . . . . . . . . . Scanalyzer 15 | . . . 8 6 . . . . . 1 . . . . Insert Component 8 | . . . 4 3 . . . . . 1 . . . . Analyze 7 | . . . 4 3 . . . . . . . . . . Garrison Access Hacks 3 | . . . . . . . 2 . . . . 1 . . Seal Access 3 | . . . . . . . 2 . . . . 1 . . Unauthorized Hacks . | . . . . . . . . . . . . . . . Terminals . | . . . . . . . . . . . . . . . Fabricators . | . . . . . . . . . . . . . . . Repair Stations . | . . . . . . . . . . . . . . . Recycling Units . | . . . . . . . . . . . . . . . Scanalyzers . | . . . . . . . . . . . . . . . Garrison Access . | . . . . . . . . . . . . . . . Data Cores Recovered 1 | . . . . . . . 1 . . . . . . . Used 1 | . . . . . . . 1 . . . . . . . Hacking Detections 67 | . 9 1 10 12 4 3 4 1 5 3 3 2 6 4 Full Trace Events 18 | . 1 . 4 4 1 1 . 1 2 . . . 1 3 Feedback Events . | . . . . . . . . . . . . . . . Feedback Blocked . | . . . . . . . . . . . . . . . Robot Schematics Acquired 3 | . . . . . . . 1 . 2 . . . . . Robots Built . | . . . . . . . . . . . . . . . Matter . | . . . . . . . . . . . . . . . Time . | . . . . . . . . . . . . . . . Total Robot Build Rating . | . . . . . . . . . . . . . . . Part Schematics Acquired 8 | . . . 4 3 . . . . 1 . . . . . Parts Built 2 | . . . . . 2 . . . . . . . . . Matter 146 | . . . . . 146 . . . . . . . . . Time 73 | . . . . . 73 . . . . . . . . . Total Part Build Rating 6 | . . . . . 6 . . . . . . . . . Parts Repaired 5 | . . . 3 1 . . 1 . . . . . . . Time 185 | . . . 103 38 . . 44 . . . . . . . Parts Recycled . | . . . . . . . . . . . . . . . Recycled Matter . | . . . . . . . . . . . . . . . Retrieved Matter . | . . . . . . . . . . . . . . . Retrieved Components . | . . . . . . . . . . . . . . . Parts Scanalyzed 8 | . . . 4 3 . . . . . 1 . . . . Part Schematics Acquired 7 | . . . 4 3 . . . . . . . . . . Parts Damaged . | . . . . . . . . . . . . . . . Bothacking | -11 -10 -10 -9 -8 -7 -7 -6 -5 -5 -4 -3 -2 -1 -1 ------------ Run | Scr Mat Min Mat Mat Fac Sto Fac Fac Ext Fac Res Res Acc Com Used RIF Installer . | . . . . . . . . . . . . . . . Robots Hacked . | . . . . . . . . . . . . . . . Non-combat . | . . . . . . . . . . . . . . . Combat . | . . . . . . . . . . . . . . . Robot Hacks Applied . | . . . . . . . . . . . . . . . Relay Couplers Released . | . . . . . . . . . . . . . . . Robots Rewired . | . . . . . . . . . . . . . . . Allies Hacked . | . . . . . . . . . . . . . . . Hacks Repelled . | . . . . . . . . . . . . . . . Allies | -11 -10 -10 -9 -8 -7 -7 -6 -5 -5 -4 -3 -2 -1 -1 -------- Run | Scr Mat Min Mat Mat Fac Sto Fac Fac Ext Fac Res Res Acc Com Total Allies 10 | . . . . . . . . . 10 . . . . . Largest Group 10 | . . . . . . . . . 10 . . . . . Highest-Rated Group 422 | . . . . . . . . . 422 . . . . . Highest-Rated Ally 148 | . . . . . . . . . 148 . . . . . Total Orders . | . . . . . . . . . . . . . . . Ally Attacks 91 | . . . . . . . . . 91 . . . . . Total Damage 2057 | . . . . . . . . . 2057 . . . . . Kills 15 | . . . . . . . . . 15 . . . . . Allies Corrupted . | . . . . . . . . . . . . . . . Allies Melted . | . . . . . . . . . . . . . . . Intel | -11 -10 -10 -9 -8 -7 -7 -6 -5 -5 -4 -3 -2 -1 -1 ------- Run | Scr Mat Min Mat Mat Fac Sto Fac Fac Ext Fac Res Res Acc Com Robot Analysis Total 4 | . 3 . . . . . 1 . . . . . . . Derelict Logs Recovered 1 | . . 1 . . . . . . . . . . . . Drone Launches 23 | . . . . . . 19 2 . . . . . . 2 Drone Recoveries 9 | . . . . . . 7 . . . . . . . 2 Exploration | -11 -10 -10 -9 -8 -7 -7 -6 -5 -5 -4 -3 -2 -1 -1 ------------- Run | Scr Mat Min Mat Mat Fac Sto Fac Fac Ext Fac Res Res Acc Com Turns Passed 14171 | 80 3319 1393 2592 2971 982 314 497 138 285 108 549 444 263 236 Spaces Moved 13962 | 48 1054 667 1079 1366 1467 551 1417 487 786 389 1990 1188 938 535 Core 17 | 11 . . . . . . . . . . . . . 6 Treads 2878 | 37 169 227 1079 1366 . . . . . . . . . . Legs 1325 | . 885 440 . . . . . . . . . . . . Wheels . | . . . . . . . . . . . . . . . Hover . | . . . . . . . . . . . . . . . Flight 9742 | . . . . . 1467 551 1417 487 786 389 1990 1188 938 529 Fastest Speed 12 | 50 150 180 180 180 26 26 22 22 22 19 19 17 12 12 Average Speed 80 | 134 295 199 199 182 26 26 22 22 22 19 20 17 12 25 Slowest Speed 330 | 160 330 210 200 220 27 28 22 22 22 19 21 27 17 174 Overloaded Moves . | . . . . . . . . . . . . . . . Propulsion Burnouts . | . . . . . . . . . . . . . . . Robots Hopped . | . . . . . . . . . . . . . . . Cave-ins Triggered . | . . . . . . . . . . . . . . . Exploration Rate (%) 45 | 5 99 97 96 79 28 61 29 14 49 12 33 23 28 28 Regions Visited 14 Branch Regions 4 Pre-discovered Areas . | . . . . . . . . . . . . . . . Known Exits Taken 11 | . . . 1 1 1 1 1 1 1 1 1 1 1 . Unknown Exits Taken 3 | 1 1 1 . . . . . . . . . . . . Scrap Searched 2 | . . 2 . . . . . . . . . . . . Spaces Dug 34 | . . . . . 20 . 13 . . . . . . 1 Terrain Destroyed 521 | . 39 . 330 118 20 . 13 . . . . . . 1 Melee 34 | . . . . . 20 . 13 . . . . . . 1 Projectile 23 | . . . . 23 . . . . . . . . . . AOE 464 | . 39 . 330 95 . . . . . . . . . . Terrain Rammed . | . . . . . . . . . . . . . . . Walls Destroyed . | . . . . . . . . . . . . . . . Machines Disabled . | . . . . . . . . . . . . . . . Actions | -11 -10 -10 -9 -8 -7 -7 -6 -5 -5 -4 -3 -2 -1 -1 --------- Run | Scr Mat Min Mat Mat Fac Sto Fac Fac Ext Fac Res Res Acc Com Total 16355 | 63 1187 709 1380 1690 2035 718 1582 518 895 421 2112 1365 1067 613 Wait 1424 | . 41 21 153 118 469 127 98 16 67 25 70 106 87 26 Move 13948 | 47 1053 666 1078 1365 1466 550 1416 486 785 388 1989 1187 937 535 Hop . | . . . . . . . . . . . . . . . Pick Up 229 | 10 29 5 31 44 25 10 16 7 2 3 16 11 15 5 Fast Attach . | . . . . . . . . . . . . . . . Attach 105 | 6 4 . 15 11 19 6 6 3 1 2 3 9 13 7 Detach . | . . . . . . . . . . . . . . . Swap 82 | . 8 2 9 23 7 5 5 2 . 2 9 3 5 2 Drop 144 | . 11 5 15 37 26 10 9 4 2 1 12 2 4 6 Fire 201 | . 40 10 74 77 . . . . . . . . . . Melee 125 | . . . . 14 23 3 14 . 2 . 13 39 6 11 Ram . | . . . . . . . . . . . . . . . Kick . | . . . . . . . . . . . . . . . Crush 7 | . 1 . 5 1 . . . . . . . . . . Escape Stasis 90 | . . . . . . 7 18 . 36 . . 8 . 21 Rewire . | . . . . . . . . . . . . . . . Trap . | . . . . . . . . . . . . . . . Miscellaneous . | . . . . . . . . . . . . . . . Route ------- -11/Scrapyard -10/Materials (discovered 4 exits: *Mat x3 / *Min) -10/Mines (discovered 2 exits: *Mat x2) -9/Materials (discovered 5 exits: *Mat x3 / [*Min x2]) -8/Materials (discovered 3 exits: *Fac x3) -7/Factory (discovered 2 exits: *Sto x2) -7/Storage -6/Factory (discovered 2 exits: *Fac x2) -5/Factory (discovered 2 exits: Fac / *Ext) -5/Extension -4/Factory -3/Research -2/Research -1/Access -1/Command History --------- Turn | Location | Event 7 | -11/Scrapyard | Discovered new exit (range 15) 81 | -11/Scrapyard | Entered Materials 309 | -10/Materials | Build established: Mutant 458 | -10/Materials | Discovered new exit (range 16) 864 | -10/Materials | Build established: Hauler-Mutant 999 | -10/Materials | Discovered new exit (range 11) 2108 | -10/Materials | Discovered new exit (range 15) 2581 | -10/Materials | Discovered new exit (range 15) 3400 | -10/Materials | Entered Mines 3428 | -10/Mines | Learned 2 Materials zone layouts 3456 | -10/Mines | Received a Rocket Launcher from a helpful Derelict 3935 | -10/Mines | Discovered new exit (range 5) 4089 | -10/Mines | Discovered new exit (range 12) 4346 | -10/Mines | Joined a pair of Derelicts in attacking an 0b10 outpost 4793 | -10/Mines | Entered Materials 4793 | -9/Materials | Evolved 2 slots: Power x1, Utility x1 4793 | -9/Materials | Discovered new exit (range 15) 4794 | -9/Materials | Identified exit to Materials 5159 | -9/Materials | Destroyed 7 combat bots 5165 | -9/Materials | Discovered new exit (range 10) 6407 | -9/Materials | Lost 3 parts (1n1u1w) 6476 | -9/Materials | Repaired Lgt. Treads 6504 | -9/Materials | Repaired Lgt. Treads 7214 | -9/Materials | Discovered exit to Materials (range 16) 7324 | -9/Materials | Repaired Imp. Medium Laser 7385 | -9/Materials | Entered another Materials area 7385 | -8/Materials | Evolved 2 slots: Propulsion x1, Utility x1 7473 | -8/Materials | Identified exit to Factory 8507 | -8/Materials | Repaired Hrd. Medium Armor Plating 8529 | -8/Materials | Build established: Scavenger-Mutant 9143 | -8/Materials | Build established: Hauler-Mutant 10185 | -8/Materials | First assault squad dispatched 10264 | -8/Materials | Lost 3 parts (1u2w) 10356 | -8/Materials | Entered Factory 10356 | -7/Factory | Evolved 2 slots: Propulsion x2 10387 | -7/Factory | Lost 4 parts (1p2n1u) 10406 | -7/Factory | Discovered new exit (range 13) 10416 | -7/Factory | Identified exit to Storage 10614 | -7/Factory | Fabricated Cesium-ion Thruster (x2) 10661 | -7/Factory | Build established: Scavenger-Scout 11163 | -7/Factory | Discovered exit to Storage (range 20) 11315 | -7/Factory | Build established: Scavenger-Sprinter 11338 | -7/Factory | Entered Storage 11648 | -7/Storage | Discovered new exit (range 11) 11652 | -7/Storage | Identified exit to Factory 11652 | -7/Storage | Entered Factory 11652 | -6/Factory | Evolved 2 slots: Power x1, Propulsion x1 11921 | -6/Factory | Discovered new exit (range 16) 11991 | -6/Factory | Central database locked down 12021 | -6/Factory | Build established: Sprinter 12044 | -6/Factory | Discovered new exit (range 6) 12062 | -6/Factory | Identified exit to Factory 12108 | -6/Factory | Repaired Xenon Bombardment Thruster 12149 | -6/Factory | Entered another Factory area 12149 | -5/Factory | Evolved 2 slots: Utility x2 12214 | -5/Factory | Discovered new exit (range 24) 12270 | -5/Factory | Discovered new exit (range 15) 12287 | -5/Factory | Identified exit to Extension 12287 | -5/Factory | Entered Extension 12332 | -5/Extension | Spotted B-75 Beast 12384 | -5/Extension | Rescued a captive Derelict 12384 | -5/Extension | Rescued a captive Derelict 12387 | -5/Extension | Rescued a captive Derelict 12393 | -5/Extension | Rescued a captive Derelict 12439 | -5/Extension | Rescued A7 12450 | -5/Extension | Rescued a captive Derelict 12461 | -5/Extension | Rescued a captive Derelict 12462 | -5/Extension | Rescued a captive Derelict 12476 | -5/Extension | Rescued a captive Derelict 12477 | -5/Extension | Rescued a captive Derelict 12547 | -5/Extension | Build established: Generator-Scout 12568 | -5/Extension | Spotted B-75 Beast 12572 | -5/Extension | Discovered new exit (range 5) 12572 | -5/Extension | Identified exit to Factory 12572 | -5/Extension | Entered Factory 12572 | -4/Factory | Evolved 2 slots: Power x1, Propulsion x1 12676 | -4/Factory | Discovered new exit (range 15) 12679 | -4/Factory | Identified exit to Research 12680 | -4/Factory | Entered Research 12680 | -3/Research | Evolved 2 slots: Propulsion x1, Utility x1 12923 | -3/Research | Discovered new exit (range 22) 12995 | -3/Research | Spotted B-86 Titan 13229 | -3/Research | Identified exit to Research 13229 | -3/Research | Entered another Research area 13229 | -2/Research | Evolved 2 slots: Propulsion x1, Utility x1 13601 | -2/Research | Lost 7 parts (2p4n1u) 13670 | -2/Research | Discovered new exit (range 16) 13673 | -2/Research | Identified exit to Access 13673 | -2/Research | Entered Access 13673 | -1/Access | Evolved 2 slots: Power x1, Propulsion x1 13704 | -1/Access | Spotted B-99 Colossus 13704 | -1/Access | Found Enh. Force Lance 13725 | -1/Access | Found Prototype Hackware 13726 | -1/Access | Identified Exp. System Shield 13743 | -1/Access | Lost 5 parts (2p1n2u) 13935 | -1/Access | Discovered new exit (range 8) 13936 | -1/Access | Identified exit to Command 13936 | -1/Access | Entered Command 14048 | -1/Command | Lost 8 parts (4p3n1u) 14058 | -1/Command | Spotted B-99 Colossus 14065 | -1/Command | Spotted B-99 Colossus 14158 | -1/Command | Spotted Executioner 14158 | -1/Command | Spotted Executioner 14158 | -1/Command | Spotted Striker 14158 | -1/Command | Spotted Alpha 7 14158 | -1/Command | Spotted Executioner 14158 | -1/Command | Spotted Executioner 14158 | -1/Command | Spotted Striker 14158 | -1/Command | Spotted Alpha 7 14160 | -1/Command | Spotted B-99 Colossus 14160 | -1/Command | Spotted B-99 Colossus 14166 | -1/Command | Core integrity fell below 50% 14170 | -1/Command | Core integrity fell below 20% 14172 | -1/Command | Destroyed by Executioner with Helical Railgun Last Messages --------------- 14170_ Field strength at 94. 14170_ Executioner knocked back. 14170_ Slug penetrates K-01 Serf. 14170_ K-01 Serf destroyed. 14171_ Penetrated by Slug. 14171_ Slug penetrates Wall. 14171_ R-10 Processor collects Med. Matter Pod. 14171_ Field strength at 55. 14171_ Penetrated by Slug. 14171_ K-01 Serf collects debris. 14172_ Executioner knocked back. 14172_ Penetrated by Slug. 14172_ Slug penetrates Wall. 14172_ Penetrated by Slug. 14172_ Slug penetrates Wall. 14172_ Stasis field depleted. 14172_ Triggered Stasis Trap. 14172_ A bubble of rippling energy engulfs the area. 14172_ Field strength at 94. 14172_ Penetrated by Slug. Map ----- +----------------------------------------------------+ | ????# #??????????????????????????????????? | | ????# "" #??????????????????????????????????? | | ????# """" #??????????????????????????????????? | | ????# """" #??????????????????????????????????? | | ##### "" #??????????????????????????????????? | | + #??????????????????????????????????? | | #### #??????????????????????????????????? | | #??####/##+#####????????????????????????????????? | | #?????# = #?# ????????? #?????????????????? | | #?????# #?# ???????? #?????????????????? | | ####### "" |#?# ??????? #?????????????????? | | # """ #?# ??????? #?????????????????? | | + T" #?# ??????? #?????????????????? | | # """ #?# ?????? #?????????????????? | | # "" #?# ?????? #?????????????????? | | ! # #?# ^?????? #?????????????????? | | # #?? """""" #?????????????????? | | ##########?? ^ #?????????????????? | | #/####+####????????? #?????????????????? | | #?????????? BB #?????????????????? | | #?????????##BB BB#??????????????????? | | ] #?????????# BB !*=#???????????????????? | | #?????????## [^%;#???????????????????? | | #?????????# !! #???????????????????? | | """ #?????????## ^^E##???????????????????? | | """ #?????????# EE^@ #???????????????????? | | R" #?????????## K K ##???????????????????? | | """ #?????????# 7 ##??????????????????? | | "" #?????????##7 ;;#??????????????????? | | #?????????#; ###??????????????????? | | #?????????##;;;;+#;#???????????????????? | | ####"#####?????????# ; "##???????????????????? | | #####"##############;;; ##????????????????????? | | "?????????????????????? | | "#?????????# ????????? | | p "###? ? ????????? | | "" " # # #???????? | | ### """" "" " # #???????? | | #?# !! """" "" #???????? | | #?# ! "" "" = #???????? | | ### #???????? | | # R "" ######### | | " %"" #"""T"""# | | ##" Y" #""" """# | | ### "" !! | | #?# "" !! | | #?# | | ### ##+###"+#+#"#"## | | ## ## | | ## ## !== | +----------------------------------------------------+ Best States ------------- Heat Dissipation 102 Coolant Potential 160 Energy Generation 97 Energy Capacity 850 Matter Stores 300 Matter Capacity 300 Sight Range 20 Robot Scan Range 20 Terrain Scan Range 24 Terrain Scan Density 210 ECM Strength 2 Armor Coverage 450 Evasion (%) 67 Recoil Reduction 3 Offensive Hacking 20 Defensive Hacking 16 Item Schematics ----------------- Flight Unit | -9/Materials | Scanalyzed Grenade Launcher | -9/Materials | Scanalyzed Imp. Heat Sink | -9/Materials | Scanalyzed Imp. Targeting Computer | -9/Materials | Scanalyzed Cesium-ion Thruster | -8/Materials | Scanalyzed Imp. Sensor Array | -8/Materials | Scanalyzed Imp. Signal Interpreter | -8/Materials | Scanalyzed Matter Neutralizer | -5/Extension | Hacked Robot Schematics ------------------ A-15 Conveyor | -6/Factory | Hacked T-07 Excavator | -5/Extension | Hacked Y-54 Guardian | -5/Extension | Hacked Fabricated ------------ Cesium-ion Thruster | x2 | -7/Factory Alien Tech Used ----------------- None Achievements -------------- None Challenges ------------ None Game ------ Seed CryofiberAntigravKatana Manual? 0 Play Time 03:16:31 Cumulative 61.8 hours Start 2021.10.22 @ 19:48:06 End 2021.10.22 @ 23:14:01 Sessions 1 Manual Loads 0 Difficulty Rogue Special Mode None Game No. 75 Rogue 59 Adventurer 15 Explorer 1 Win Type - Total 0 Types 0/0/0/0/0/0/0/0/0 Lore% 26 Gallery% 41 Achievement% 36 Wizard Run 0 Options --------- ASCII 0 Keyboard 0 Movement Mouse Keybinds 0 Fullscreen 2 Font 18/SmallcapsGlow Map View 76x50 Tactical HUD 1 Map Filters NONE Filters NONE Steam 1 RUN: 44a0988b-cb91-4c6c-8493-3828f34c768a